fUST/lending_fUST_20260211
["ID","MTS","AMOUNT","RATE_DAILY","PERIOD"]
[405096668,1770798548114,-1223.86685852,0.00024953,2]
[405096669,1770798548138,-128.50516632,0.000252,5]
[405096670,1770798557077,-454.72395726,0.000252,5]
[405096671,1770798557098,-168.29265374,0.0002589,2]
[405096672,1770798557117,-161.0,0.00026,5]
[405096673,1770798557138,-296.01216102,0.00027262,2]
[405096674,1770798557159,-300.0,0.00027262,2]
[405096675,1770798557178,-266.16779227,0.00027263,2]
[405096676,1770798572075,-7836.48319994,0.00027263,2]
[405096677,1770798573153,-2707.48175718,0.00027263,2]
[405096678,1770798603210,739.32479363,0.00030137,120]
[405096679,1770798630443,240.38541,0.00027,120]
[405096719,1770798632207,-19.95792199,0.00027262,2]
[405096727,1770798632579,247.55875,0.00029,120]
[405096728,1770798635155,389.82624,0.00027,120]
[405096741,1770798640379,-39.74767686,0.00027262,2]
[405096764,1770798646101,-240.29440115,0.00027262,2]
[405096765,1770798646111,-300.0,0.00027262,2]
[405096766,1770798646121,-770.0,0.00027262,2]
[405096767,1770798646130,-2628.6868116,0.00027263,2]
[405096768,1770798646782,-9093.15043786,0.00027263,2]
[405096769,1770798646793,-771.99000221,0.00027263,2]
[405096771,1770798662148,5000.0,0.00024953,2]
[405096774,1770798748372,1461.16507577,0.00025,2]
[405096776,1770798758223,-266.17358988,0.0002475,2]
[405096779,1770798903155,739.32479363,0.00030137,120]
[405096780,1770798909133,169.0,0.0002877,120]
[405096781,1770798935488,322.0,0.00028732,120]
[405096782,1770799130711,3668.38584376,0.000237,2]
[405096783,1770799145984,1461.16507577,0.000237,2]
[405096784,1770799246942,193.0,0.00028299,120]
[405096785,1770799248526,193.0,0.00029714,120]
[405096787,1770799534531,165.0,0.00028216,120]
[405096788,1770799535906,165.0,0.00029627,120]
[405096789,1770799556137,-176.0603116,0.00024318,2]
[405096790,1770799556160,-1333.33466946,0.00024683,2]
[405096791,1770799556181,-1107.02852699,0.00025922,2]
[405096792,1770799636091,-605.23277296,0.00024722,2]
[405096793,1770799640090,-885.82507057,0.00024722,2]
[405096794,1770799641119,-154.83215239,0.00024722,2]
[405096795,1770799641140,-20.62990687,0.00025922,2]
[405096797,1770799752087,-2466.97630031,0.00024726,2]
[405096798,1770799752109,-55.64594984,0.00025583,2]
[405096799,1770799755600,-1243.74766306,0.00025583,2]
[405096800,1770799755621,-300.0,0.0002613,2]
[405096801,1770799755642,-185.9621508,0.00026203,2]
[405096802,1770799755660,-729.662027,0.00026208,2]
[405096803,1770799755681,-207.75116769,0.00026318,2]
[405096804,1770799755702,-2425.16152762,0.00026792,2]
[405096805,1770799756171,-171.78518134,0.00026792,2]
[405096806,1770799756192,-300.0,0.00026848,2]
[405096807,1770799756213,-300.0,0.0002726,2]
[405096808,1770799756233,-300.0,0.00027261,2]
[405096809,1770799756256,-150.0,0.00027261,2]
[405096810,1770799756277,-500.0,0.00027261,2]
[405096811,1770799756296,-501.76292103,0.00027261,2]
[405096812,1770799756316,-501.41960638,0.00027261,2]
[405096813,1770799756336,-500.0,0.00027261,2]
[405096814,1770799756357,-500.0,0.00027261,2]
[405096815,1770799756377,-2193.9637892,0.00027261,2]
[405096816,1770799756396,-249.78279594,0.00027262,5]
[405096817,1770799758615,-172.53910537,0.00025394,2]
[405096818,1770799810284,170.0,0.00026567,120]
[405096819,1770799811870,170.0,0.00027895,120]
[405096820,1770799828531,1286.14576418,0.00025583,2]
[405096841,1770799831978,-2568.74333333,0.00026761,2]
[405096843,1770799831991,-300.0,0.00027261,2]
[405096845,1770799832000,-250.21720406,0.00027262,5]
[405096847,1770799832010,-500.0,0.00027262,5]
[405096849,1770799832019,-500.0,0.00027262,5]
[405096851,1770799832031,-510.49666393,0.00027262,5]
[405096853,1770799832040,-500.0,0.00027262,5]
[405096855,1770799832049,-500.0,0.00027262,5]
[405096857,1770799832061,-500.0,0.00027262,5]
[405096859,1770799832070,-500.0,0.00027262,5]
[405096861,1770799832079,-500.0,0.00027262,5]
[405096863,1770799832088,-1580.28523932,0.00027263,2]
[405096877,1770799833297,209.0,0.00026601,120]
[405096878,1770799834525,209.0,0.00027931,120]
[405096879,1770799835749,209.0,0.00029328,120]
[405096881,1770799838030,-1690.35791182,0.00027263,2]
[405096882,1770799838042,-3193.6069186,0.00027272,2]
[405096883,1770799838051,-150.0,0.0002739,2]
[405096884,1770799838062,-203.59614433,0.00027394,2]
[405096886,1770799838164,-500.0,0.00027397,2]
[405096887,1770799838181,-200.0,0.00027397,2]
[405096888,1770799838191,-503.08111226,0.00027397,5]
[405096889,1770799838201,-150.0,0.00027397,5]
[405096890,1770799838211,-380.0,0.00027465,2]
[405096891,1770799838220,-500.0,0.00027677,5]
[405096892,1770799838230,-500.0,0.00027677,5]
[405096893,1770799838239,-855.4429717,0.00027678,2]
[405096894,1770799838249,-797.361348,0.0002779,2]
[405096895,1770799838258,-250.0,0.00027945,5]
[405096896,1770799838267,-2128.40094901,0.0002813,2]
[405096897,1770799838277,-500.0,0.00028293,5]
[405096898,1770799838287,-500.0,0.00028293,5]
[405096899,1770799838296,-500.0,0.00028293,5]
[405096900,1770799838306,-500.0,0.00028293,5]
[405096901,1770799838316,-500.0,0.00028293,5]
[405096902,1770799838325,-500.0,0.00028293,5]
[405096903,1770799838336,-500.0,0.00028293,5]
[405096904,1770799838345,-500.0,0.00028293,5]
[405096905,1770799838355,-3851.34090249,0.00028332,2]
[405096906,1770799838366,-152.3477101,0.00028493,5]
[405096907,1770799838376,-560.11,0.00028936,2]
[405096908,1770799838386,-164.62014505,0.00029288,14]
[405096909,1770799838397,-234.6531833,0.00029394,2]
[405096910,1770799838407,-420.0,0.00029464,2]
[405096911,1770799838416,-154.48464515,0.00029467,30]
[405096912,1770799838429,-300.0,0.00029741,30]
[405096913,1770799838439,-300.0,0.00029741,30]
[405096914,1770799838450,-300.0,0.00029741,30]
[405096915,1770799838460,-300.0,0.00029741,30]
[405096916,1770799838470,-300.0,0.00029741,30]
[405096917,1770799838480,-300.0,0.00029741,30]
[405096918,1770799838491,-300.0,0.00029741,30]
[405096919,1770799838501,-300.0,0.00029741,30]
[405096920,1770799838511,-300.0,0.00029741,30]
[405096921,1770799838521,-300.0,0.00029741,30]
[405096922,1770799838531,-300.0,0.00029741,30]
[405096923,1770799838540,-300.0,0.00029741,30]
[405096924,1770799838551,-300.0,0.00029741,30]
[405096925,1770799838560,-300.0,0.00029741,30]
[405096926,1770799838570,-300.0,0.00029741,30]
[405096927,1770799838580,-5133.93847164,0.00029902,2]
[405096928,1770799838590,-607.31349073,0.0003,30]
[405096929,1770799838600,-2647.3795841,0.00030108,2]
[405096930,1770799838609,-500.0,0.00030137,7]
[405096931,1770799838619,-500.0,0.00030137,2]
[405096932,1770799838629,-322.0,0.00030168,120]
[405096933,1770799838638,-169.0,0.00030208,120]
[405096934,1770799838648,-600.0,0.00030335,30]
[405096935,1770799838658,-169.0,0.000306,120]
[405096936,1770799838669,-459.0,0.000306,120]
[405096937,1770799838678,-500.0,0.00030626,5]
[405096938,1770799838689,-500.0,0.00030626,5]
[405096939,1770799838700,-855.4429717,0.00030632,2]
[405096940,1770799838709,-209.0,0.00030794,120]
[405096941,1770799838718,-797.361348,0.0003095,2]
[405096942,1770799838728,-307.1436102,0.0003099,2]
[405096943,1770799838738,-487.45205838,0.00031,2]
[405096944,1770799838748,-165.0,0.00031108,120]
[405096945,1770799838758,-193.0,0.000312,120]
[405096946,1770799838767,-500.0,0.00031275,5]
[405096947,1770799838777,-500.0,0.00031275,5]
[405096948,1770799838787,-502.64226235,0.00031275,5]
[405096949,1770799838796,-500.0,0.00031275,5]
[405096950,1770799838806,-500.0,0.00031275,5]
[405096951,1770799838816,-577.1292709,0.00031275,5]
[405096952,1770799838825,-500.0,0.00031275,5]
[405096953,1770799838835,-500.0,0.00031275,5]
[405096954,1770799838846,-265.71022226,0.00031394,2]
[405096955,1770799838856,-6416.53604079,0.00031473,2]
[405096956,1770799838866,-208.7940589,0.00031498,60]
[405096957,1770799838876,-150.73,0.00031644,30]
[405096958,1770799838885,-322.0,0.00031677,120]
[405096959,1770799838896,-169.0,0.00031719,120]
[405096960,1770799838906,-500.0,0.0003175,2]
[405096961,1770799838917,-587.0,0.00031846,2]
[405096962,1770799838927,-500.0,0.00031899,5]
[405096963,1770799838937,-500.0,0.00031899,5]
[405096964,1770799838946,-11824.07918644,0.000319,2]
[405096965,1770799839130,-13700.03996085,0.000319,2]
[405096966,1770799839149,-201.37422692,0.00032,2]
[405096967,1770799839158,-153.6163894,0.00032,120]
[405096968,1770799839168,-618.14379001,0.0003212,2]
[405096969,1770799839178,-389.82624,0.000323,120]
[405096970,1770799839187,-420.0,0.00032673,3]
[405096971,1770799839197,-2647.37958405,0.0003291,2]
[405096972,1770799839207,-500.0,0.00032999,5]
[405096973,1770799839217,-449.34597138,0.00032999,5]
[405096974,1770799839227,-692.29382789,0.00033,14]
[405096975,1770799839236,-614.28717013,0.00033,30]
[405096976,1770799839246,-7699.13360994,0.00033043,2]
[405096977,1770799839256,-500.0,0.00033069,5]
[405096978,1770799839266,-500.0,0.00033079,5]
[405096979,1770799839275,-292.77808172,0.00033089,5]
[405096980,1770799839284,-150.73,0.00033151,30]
[405096981,1770799839294,-290.92760278,0.00033192,2]
[405096982,1770799839303,-332.15620021,0.00033192,2]
[405096983,1770799839312,-277.47916459,0.00033192,2]
[405096984,1770799839322,-317.11904525,0.00033192,2]
[405096985,1770799839332,-495.4985082,0.00033192,2]
[405096986,1770799839341,-171.69818543,0.000332,117]
[405096987,1770799839351,-720.0,0.00033368,30]
[405096988,1770799839360,-296.76726123,0.00033394,120]
[405096989,1770799839370,-855.4429717,0.00033586,2]
[405096990,1770799839379,-164.61006366,0.00033605,5]
[405096991,1770799839388,-500.0,0.00033605,5]
[405096992,1770799839397,-500.0,0.00033605,5]
[405096993,1770799839407,-500.0,0.00033605,5]
[405096994,1770799839416,-500.0,0.00033605,5]
[405096995,1770799839425,-500.0,0.00033605,5]
[405096996,1770799839435,-246.67361559,0.00033652,3]
[405096997,1770799839445,-618.14379001,0.00033748,2]
[405096998,1770799839454,-618.14379001,0.00033758,2]
[405096999,1770799839463,-618.14379001,0.00033778,2]
[405097000,1770799839472,-4520.22856035,0.00033788,60]
[405097001,1770799839483,-2075.37795769,0.000338,2]
[405097002,1770799839493,-797.361348,0.0003411,2]
[405097003,1770799839504,-159.0003259,0.00034153,2]
[405097004,1770799839514,-823.0,0.00034419,2]
[405097005,1770799839524,-487.0,0.0003446,2]
[405097006,1770799839534,-487.0,0.0003446,2]
[405097007,1770799839544,-487.0,0.0003446,2]
[405097008,1770799839559,-487.0,0.0003446,2]
[405097009,1770799839570,-487.0,0.0003446,2]
[405097010,1770799839580,-487.0,0.0003446,2]
[405097011,1770799839590,-514.44,0.0003446,2]
[405097012,1770799839600,-8826.7901431,0.00034613,2]
[405097013,1770799839609,-684.65258024,0.00034764,2]
[405097014,1770799839619,-500.0,0.00034913,5]
[405097015,1770799839629,-489.30644431,0.00034913,5]
[405097016,1770799839639,-412.49234379,0.00034913,5]
[405097017,1770799839650,-500.0,0.00034913,5]
[405097018,1770799839660,-500.0,0.00034913,5]
[405097019,1770799839672,-500.0,0.00034923,5]
[405097020,1770799839682,-500.0,0.00034923,5]
[405097021,1770799839692,-500.0,0.00034923,5]
[405097022,1770799839703,-618.14379001,0.0003498,2]
[405097023,1770799839712,-43400.43428937,0.0003499,2]
[405097024,1770799839723,-2472.57516004,0.0003499,2]
[405097025,1770799839733,-500.0,0.00034999,5]
[405097026,1770799839742,-500.0,0.00034999,5]
[405097027,1770799839752,-500.0,0.00034999,5]
[405097028,1770799839762,-265.61286025,0.00034999,5]
[405097029,1770799839772,-500.0,0.00034999,5]
[405097030,1770799839782,-586.6241968,0.00034999,5]
[405097032,1770799839793,-500.0,0.00034999,5]
[405097034,1770799839803,-500.0,0.00034999,5]
[405097037,1770799839812,-500.0,0.00034999,5]
[405097038,1770799839821,-319.3,0.00034999,5]
[405097039,1770799839833,-151.94573594,0.00035,14]
[405097040,1770799839842,-42539.33302745,0.00035,2]
[405097046,1770799840236,-209.0,0.00032334,120]
[405097047,1770799840246,-209.0,0.0003395,120]
[405097048,1770799840256,-4316.94049914,0.00034409,10]
[405097049,1770799840280,-3e-08,0.00034409,10]
[405097050,1770799840319,-67.24808588,0.00034409,10]
[405097053,1770799844309,-108.94983332,0.00034409,10]
[405097054,1770799845005,-1546.7963058,0.00034409,10]
[405097055,1770799845017,-12460.48676214,0.00034409,10]
[405097064,1770799846220,-19458.97851369,0.00034409,10]
[405097065,1770799846230,-15525.46540813,0.00035,2]
[405097066,1770799846252,-122.38244609,0.00035,2]
[405097067,1770799846263,-1743.92204958,0.00035,2]
[405097068,1770799869385,153.28240594,0.00013699,2]
[405097070,1770800139079,1210.0,0.00030137,120]
[405097071,1770800167794,158.28520692,0.00013699,2]
[405097072,1770800168481,160.08624388,0.00013699,2]
[405097073,1770800223785,158.2,0.00013699,2]
[405097074,1770800224838,158.08514885,0.00013699,2]
[405097075,1770800227893,160.08623889,0.00013699,2]
[405097076,1770800405440,158.08506208,0.00013699,2]
[405097077,1770800409533,158.08507225,0.00013699,2]
[405097078,1770800501225,500.0,0.00023,2]
[405097081,1770800623465,413.0,0.000235,2]
[405097082,1770800660437,500.0,0.000235,2]
[405097085,1770800709720,198.2869117,0.00013273,2]
[405097098,1770800755135,-151.45876368,0.00024783,2]
[405097099,1770800755157,-178.72134114,0.00026783,2]
[405097100,1770800755178,-816.0,0.00027034,2]
[405097101,1770800755198,-500.0,0.00027338,2]
[405097102,1770800755221,-279.16947762,0.00027412,2]
[405097103,1770800755241,-300.0,0.00027903,2]
[405097104,1770800755264,-300.0,0.00027903,2]
[405097105,1770800755284,-300.0,0.00027903,2]
[405097106,1770800755304,-300.0,0.00027903,2]
[405097107,1770800755324,-341.6459466,0.00028112,2]
[405097108,1770800755343,-554.58576976,0.00028289,2]
[405097110,1770800840084,-1166.72732311,0.00025583,2]
[405097111,1770800840104,-487.36535782,0.00026964,2]
[405097112,1770800951121,-1089.35467192,0.00025583,2]
[405097113,1770800951142,-1922.2055,0.0002669,2]
[405097114,1770800965103,-2571.06816766,0.0002819,2]
[405097117,1770801007755,158.28505577,0.00013699,2]
[405097345,1770801038296,-151.03667814,0.00028289,2]
[405097347,1770801038305,-205.98391861,0.00028783,2]
[405097349,1770801038315,-257.4805824,0.00028943,2]
[405097351,1770801038324,-240.03874413,0.00029,2]
[405097353,1770801038336,-1759.96125587,0.00029,2]
[405097355,1770801038348,-170.0,0.00029288,14]
[405097357,1770801038357,-158.8299138,0.00029554,60]
[405097359,1770801038367,-163.0,0.00029688,2]
[405097360,1770801038377,-300.0,0.00029688,2]
[405097361,1770801038386,-265.0,0.00029688,2]
[405097362,1770801038396,-759.0,0.00029688,2]
[405097363,1770801038406,-168.0,0.0003,14]
[405097364,1770801038416,-500.0,0.00030059,2]
[405097365,1770801038427,-500.0,0.00030059,2]
[405097366,1770801038438,-500.0,0.00030059,2]
[405097367,1770801038447,-500.0,0.00030059,2]
[405097368,1770801038456,-500.0,0.00030059,2]
[405097369,1770801038466,-258.20308388,0.00030059,2]
[405097370,1770801038476,-9093.1504379,0.0003006,2]
[405097371,1770801038486,-2162.95,0.00030137,120]
[405097372,1770801038496,-233.24649607,0.00030783,2]
[405097373,1770801038506,-168.0,0.00031644,14]
[405097374,1770801038515,-590.52169454,0.00031977,2]
[405097375,1770801038525,-420.0,0.00032007,2]
[405097376,1770801038535,-2343.73004177,0.00032389,2]
[405097377,1770801038544,-260.50907353,0.00032783,2]
[405097378,1770801038554,-150.0,0.00032877,35]
[405097379,1770801038571,-340.75,0.00032877,35]
[405097380,1770801038584,-500.0,0.00033129,7]
[405097381,1770801038595,-500.0,0.00033191,2]
[405097382,1770801038605,-230.85844091,0.00033192,2]
[405097383,1770801038615,-193.28021961,0.00033192,2]
[405097384,1770801038625,-347.9043953,0.00033192,2]
[405097385,1770801038635,-415.54519364,0.00033192,2]
[405097386,1770801038645,-171.0,0.00033226,30]
[405097387,1770801038655,-570.6523956,0.00033646,3]
[405097388,1770801038666,-618.49670275,0.00034006,2]
[405097389,1770801038676,-738.74701091,0.00034014,2]
[405097390,1770801038687,-2164.0,0.00034036,2]
[405097391,1770801038697,-1376.0,0.00034036,2]
[405097392,1770801038708,-633.0,0.00034036,2]
[405097393,1770801038718,-478.40464117,0.00034134,3]
[405097394,1770801038729,-328.78406431,0.00034186,7]
[405097395,1770801038739,-500.0,0.00034204,7]
[405097396,1770801038750,-587.0,0.00034508,2]
[405097397,1770801038760,-1652.8043198,0.0003457,2]
[405097398,1770801038770,-2343.73004174,0.00034662,2]
[405097399,1770801038780,-500.0,0.00034672,7]
[405097400,1770801038790,-250.0,0.00034754,2]
[405097401,1770801038800,-209.40437684,0.00034754,2]
[405097402,1770801038811,-250.0,0.00034754,2]
[405097403,1770801038821,-217.15233878,0.00034754,2]
[405097404,1770801038831,-250.0,0.00034754,2]
[405097405,1770801038841,-225.18697532,0.00034754,2]
[405097406,1770801038852,-233.51889341,0.00034754,2]
[405097407,1770801038861,-250.0,0.00034754,2]
[405097408,1770801038871,-250.0,0.00034754,2]
[405097409,1770801038881,-242.15909246,0.00034754,2]
[405097410,1770801038892,-250.0,0.00034754,2]
[405097411,1770801038901,-251.11897888,0.00034754,2]
[405097412,1770801038911,-250.0,0.00034754,2]
[405097413,1770801038921,-260.4103811,0.00034754,2]
[405097414,1770801038930,-250.0,0.00034754,2]
[405097415,1770801038940,-270.0455652,0.00034754,2]
[405097416,1770801038951,-280.03725112,0.00034754,2]
[405097417,1770801038960,-250.0,0.00034754,2]
[405097419,1770801038970,-216.12591548,0.00034754,2]
[405097421,1770801038979,-250.0,0.00034754,2]
[405097423,1770801038989,-250.0,0.00034754,2]
[405097425,1770801038998,-416.9207453,0.00034772,2]
[405097427,1770801039008,-10636.1525311,0.00034775,2]
[405097429,1770801039018,-287.771651,0.00034783,120]
[405097431,1770801039028,-500.0,0.00034886,7]
[405097433,1770801039038,-500.0,0.00034919,2]
[405097434,1770801039049,-500.0,0.00034979,2]
[405097435,1770801039059,-500.0,0.00034979,2]
[405097436,1770801039070,-707.64591476,0.0003498,2]
[405097437,1770801039080,-33709.58,0.0003498,10]
[405097438,1770801039089,-28091.31,0.0003498,10]
[405097439,1770801039099,-500.0,0.00034989,2]
[405097440,1770801039109,-500.0,0.00034989,2]
[405097441,1770801039119,-500.0,0.00034989,2]
[405097442,1770801039128,-100000.0,0.0003499,2]
[405097443,1770801039139,-1061.46887214,0.0003499,2]
[405097444,1770801039148,-500.0,0.00034999,2]
[405097445,1770801039158,-500.0,0.00034999,2]
[405097446,1770801039168,-500.0,0.00034999,2]
[405097447,1770801039179,-500.0,0.00034999,2]
[405097448,1770801039188,-500.0,0.00034999,2]
[405097449,1770801039198,-500.0,0.00034999,2]
[405097450,1770801039208,-500.0,0.00034999,2]
[405097451,1770801039218,-82006.74994005,0.00035,2]
[405097452,1770801039227,-7203.46,0.00035,14]
[405097453,1770801039237,-291.68,0.00035,30]
[405097454,1770801039247,-25500.0,0.00035,4]
[405097455,1770801039257,-30136.0,0.00035,2]
[405097456,1770801039269,-707.64591476,0.00035091,2]
[405097457,1770801039279,-500.0,0.000351,2]
[405097458,1770801039289,-500.0,0.000351,2]
[405097459,1770801039298,-500.0,0.000351,2]
[405097460,1770801039308,-500.0,0.000351,2]
[405097461,1770801039317,-500.0,0.000351,2]
[405097462,1770801039327,-93233.68299869,0.00035101,120]
[405097463,1770801039337,-742.38915205,0.00035414,2]
[405097464,1770801039347,-168.0,0.00035454,2]
[405097465,1770801039360,-423.0,0.00035495,2]
[405097466,1770801039370,-965.43469696,0.00035548,2]
[405097467,1770801039379,-209.0,0.00035648,120]
[405097468,1770801039389,-500.0,0.00035649,30]
[405097469,1770801039399,-600.0,0.00035689,30]
[405097470,1770801039408,-501.72164735,0.0003585,30]
[405097471,1770801039418,-500.0,0.00035989,2]
[405097472,1770801039427,-499.0,0.00035989,2]
[405097473,1770801039437,-200.50475711,0.00036,2]
[405097474,1770801039447,-335.97071487,0.00036,30]
[405097475,1770801039456,-168.0,0.00036034,2]
[405097476,1770801039466,-500.0,0.00036203,30]
[405097477,1770801039476,-1153.13791234,0.00036241,2]
[405097478,1770801039590,-168.0,0.00036487,2]
[405097479,1770801039600,-353.82295738,0.0003669,3]
[405097480,1770801039611,-7203.46,0.000367,14]
[405097481,1770801039621,-291.68,0.000367,30]
[405097482,1770801039631,-315.03422846,0.00036783,120]
[405097483,1770801039641,-500.0,0.00036926,30]
[405097484,1770801039651,-2343.73004174,0.00036934,2]
[405097485,1770801039661,-168.10120841,0.00037,120]
[405097486,1770801039670,-155.3,0.00037,30]
[405097487,1770801039680,-2164.0,0.00037036,2]
[405097488,1770801039689,-823.0,0.00037204,2]
[405097490,1770801039699,-500.0,0.00037291,30]
[405097491,1770801039708,-150.0,0.000373,15]
[405097492,1770801039718,-209.0,0.0003743,120]
[405097493,1770801039727,-2000.0,0.00037534,2]
[405097494,1770801039737,-389.82624,0.000376,120]
[405097495,1770801039747,-151.0,0.000376,19]
[405097496,1770801039756,-297.5,0.00037805,30]
[405097497,1770801039766,-649.0,0.00037805,30]
[405097498,1770801039776,-197.12888321,0.0003783,2]
[405097499,1770801039785,-707.64591476,0.0003788,3]
[405097500,1770801039795,-106167.02891423,0.0003789,2]
[405097501,1770801039805,-487.0,0.0003789,2]
[405097502,1770801039814,-487.0,0.0003789,2]
[405097503,1770801039823,-487.0,0.0003789,2]
[405097504,1770801039832,-531.99,0.0003789,2]
[405097505,1770801039842,-168.0,0.00037979,2]
[405097506,1770801039851,-401.0,0.00037979,11]
[405097507,1770801039860,-5006.87267886,0.00038,2]
[405097508,1770801039870,-701.89,0.00038,2]
[405097510,1770801039879,-200.0,0.00038015,120]
[405097512,1770801039888,-500.0,0.00038199,30]
[405097513,1770801039898,-353.82295738,0.0003829,3]
[405097514,1770801039908,-11174.38,0.000383,7]
[405097515,1770801039918,-151.0,0.000383,16]
[405097516,1770801039927,-589.43695892,0.000383,7]
[405097517,1770801039937,-151.0,0.000383,14]
[405097518,1770801039946,-1061.46887214,0.00038346,3]
[405097519,1770801039955,-500.0,0.00038356,120]
[405097520,1770801039965,-500.0,0.00038356,120]
[405097521,1770801039974,-156.28903583,0.00038356,120]
[405097523,1770801039983,-334.20505546,0.00038356,120]
[405097525,1770801039992,-500.0,0.00038356,120]
[405097526,1770801040001,-290.71,0.00038356,120]
[405097528,1770801040011,-500.0,0.00038356,120]
[405097530,1770801040020,-500.0,0.00038356,120]
[405097532,1770801040030,-500.0,0.00038356,120]
[405097534,1770801040039,-216.31469504,0.00038356,120]
[405097535,1770801040049,-500.0,0.00038356,120]
[405097536,1770801040058,-243.20822541,0.00038356,120]
[405097537,1770801040067,-500.0,0.00038356,120]
[405097538,1770801040076,-1520.84,0.00038356,120]
[405097539,1770801040085,-500.0,0.00038356,120]
[405097540,1770801040094,-500.0,0.00038356,53]
[405097541,1770801040103,-500.0,0.00038356,120]
[405097542,1770801040117,-500.0,0.00038356,120]
[405097543,1770801040126,-500.0,0.00038356,120]
[405097544,1770801040135,-500.0,0.00038356,2]
[405097545,1770801040144,-500.0,0.00038356,120]
[405097546,1770801040154,-500.0,0.00038356,120]
[405097547,1770801040163,-500.0,0.00038356,120]
[405097548,1770801040172,-500.0,0.00038356,120]
[405097549,1770801040182,-500.0,0.00038356,120]
[405097550,1770801040191,-500.0,0.00038356,120]
[405097551,1770801040200,-500.0,0.00038356,120]
[405097552,1770801040209,-500.0,0.00038356,5]
[405097553,1770801040218,-699.34,0.00038356,120]
[405097554,1770801040227,-640.28,0.00038356,120]
[405097555,1770801040236,-500.0,0.00038356,120]
[405097556,1770801040245,-500.0,0.00038356,120]
[405097557,1770801040255,-745.31,0.00038356,120]
[405097558,1770801040264,-500.0,0.00038356,120]
[405097559,1770801040273,-804.15,0.00038356,120]
[405097560,1770801040282,-150.0,0.00038356,120]
[405097561,1770801040291,-500.0,0.00038356,120]
[405097563,1770801040300,-500.0,0.00038356,120]
[405097565,1770801040309,-633.15,0.00038356,120]
[405097566,1770801040318,-500.0,0.00038356,120]
[405097568,1770801040328,-500.0,0.00038356,120]
[405097569,1770801040337,-247.73411472,0.00038356,120]
[405097570,1770801040347,-500.0,0.00038356,120]
[405097571,1770801040361,-500.0,0.00038356,120]
[405097572,1770801040370,-500.0,0.00038356,120]
[405097573,1770801040379,-500.0,0.00038356,120]
[405097574,1770801040389,-617.55,0.00038356,120]
[405097575,1770801040398,-500.0,0.00038356,7]
[405097576,1770801040408,-155.10906745,0.00038356,120]
[405097577,1770801040417,-500.0,0.00038356,2]
[405097578,1770801040428,-500.0,0.00038356,120]
[405097579,1770801040438,-500.0,0.00038356,120]
[405097580,1770801040447,-699.53,0.00038356,120]
[405097581,1770801040457,-728.02,0.00038356,120]
[405097582,1770801040466,-500.0,0.00038356,120]
[405097583,1770801040476,-543.45467787,0.00038356,120]
[405097584,1770801040485,-785.81,0.00038356,120]
[405097585,1770801040495,-500.0,0.00038356,120]
[405097586,1770801040504,-500.0,0.00038356,120]
[405097587,1770801040514,-533.01,0.00038356,120]
[405097588,1770801040523,-2187.41,0.00038356,120]
[405097589,1770801040533,-500.0,0.00038356,120]
[405097590,1770801040542,-11228.19,0.00038356,120]
[405097591,1770801040551,-500.0,0.00038356,120]
[405097592,1770801040561,-500.0,0.00038356,120]
[405097593,1770801040571,-12393.49,0.00038356,120]
[405097594,1770801040580,-5583.59,0.00038356,120]